Cogmind - Beta 17 @@@ ROGUE MODE // 2026.08.12 @ 14:44:18 Player: Marc Result: Destroyed by TS-MJU(R) with Subdweller Machine Gun Performance ------------- Evolutions (0) 0 Regions Visited (3) 600 Robots Destroyed (17) 85 Value Destroyed (347) 347 Prototype IDs (0) 0 Alien Tech Used (0) 0 Bonus (0) 0 TOTAL SCORE: 1032 Bonus ------- None Cogmind --------- Core Integrity 0/250 Matter 264/300 Energy 100/100 System Corruption 1% Temperature Cool (0) Movement Treading (160) Location -10/Subcaves Parts ------- > --- POWER (1) -------- (None) > --- PROPULSION (2) --- Light Treads Light Treads > --- UTILITY (2) ------ Medium Storage Unit Signal Interpreter > --- WEAPON (2) ------- Makeshift Spear > --- INVENTORY (10) --- Ion Engine Small Storage Unit Peak State ------------ > --- POWER ------------ Light Nuclear Core > --- PROPULSION ------- Aluminum Leg Aluminum Leg > --- UTILITY ---------- Medium Storage Unit Signal Interpreter > --- WEAPON ----------- Light Assault Rifle Makeshift Spear > --- INVENTORY -------- Ion Engine Light Treads Light Treads Small Storage Unit EM Pulse Gun [Rating: 12] Favorites ----------- Power Light Nuclear Core Engine Ion Engine Power Core Light Nuclear Core Propulsion Aluminum Leg Treads Light Treads Leg Aluminum Leg Utility Medium Storage Unit Storage Medium Storage Unit Processor Signal Interpreter Weapon Makeshift Spear Ballistic Gun Light Assault Rifle Special Weapon Mining Laser Piercing Weapon Makeshift Spear Build | -11 -10 -10 -10 ------- Run | Yrd Mat Min Sub Slots Evolved . | . . . . Power . | . . . . Propulsion . | . . . . Utility . | . . . . Weapon . | . . . . Parts Attached 12 | . 4 5 3 Power 1 | . . 1 . Engine . | . . . . Core 1 | . . 1 . Reactor . | . . . . Propulsion 4 | . . 2 2 Treads 2 | . . . 2 Leg 2 | . . 2 . Wheel . | . . . . Hover . | . . . . Flight . | . . . . Utility 2 | . 2 . . Device . | . . . . Storage 1 | . 1 . . Processor 1 | . 1 . . Hackware . | . . . . Protection . | . . . . Artifact . | . . . . Weapon 5 | . 2 2 1 Energy Gun . | . . . . Energy Cannon . | . . . . Ballistic Gun 2 | . 2 . . Ballistic Cannon . | . . . . Launcher . | . . . . Special Weapon 2 | . . 1 1 Impact Weapon . | . . . . Slashing Weapon . | . . . . Piercing Weapon 1 | . . 1 . Special Melee Weapon . | . . . . Unidentified Prototypes . | . . . . Parts Lost 7 | . 1 2 4 Power 2 | . . 1 1 Propulsion 3 | . 1 . 2 Utility . | . . . . Weapon 2 | . . 1 1 Highest Loss Streak 4 | . 1 3 4 To Critical Strikes . | . . . . Average Backups 4 | . 5 5 3 Power 1 | . 1 1 1 Propulsion 1 | . 2 2 1 Utility . | . . 1 1 Weapon . | . 1 1 . Tool/Special . | . . . . Unused Backups 5 | . . 2 3 Power 1 | . . . 1 Propulsion 2 | . . 2 . Utility 1 | . . . 1 Weapon 1 | . . . 1 Tool/Special . | . . . . Average Slot Usage (%) 87 | . 90 91 84 Engine 2 | . 14 . . Core 7 | . . 12 6 Treads 6 | . . . 13 Leg 19 | . 26 24 13 Storage 14 | . 14 14 14 Processor 12 | . 6 14 14 Ballistic Gun 9 | . 27 13 . Special Weapon 4 | . . 1 7 Piercing Weapon 9 | . . 9 14 Peak Build Rating 12 | . 7 12 12 Average Rating 9 | . 6 10 9 On Entrance 7 | 6 6 6 12 Avg Prop Armor Cover (%) . | . . . . Naked Turns . | . . . . Heaviest Build 18 | 14 18 18 18 Greatest Support 40 | 20 20 20 40 Greatest Overweight (x) 5 | . 1 5 3 Average Overweight (x) . | . . . . Largest Inventory Capacity 10 | . 10 10 10 Average Capacity 9 | . 9 10 10 Most Carried 7 | . 7 7 7 Average Carried 4 | . 4 5 3 Final Capacity 10 | 8 10 10 10 Final Carried 6 | 6 5 6 2 Class Distribution -------------------- 100% | Mutant Dominant Class ---------------- Mutant | -10/Materials Mutant | -10/Mines Mutant | -10/Subcaves Resources | -11 -10 -10 -10 ----------- Run | Yrd Mat Min Sub Matter Collected 457 | 200 120 121 16 Remotely . | . . . . Salvage Created 382 | . 256 126 . Parts 37 | . 25 12 . Haulers Intercepted . | . . . . Recyclers Shooed . | . . . . Parts Field Recycled . | . . . . Retrieved Matter . | . . . . Parts Self-Destructed 8 | . . . 8 Prevented . | . . . . Parts Restored . | . . . . Kills | -11 -10 -10 -10 ------- Run | Yrd Mat Min Sub Combat Hostiles Destroyed 15 | . 9 5 1 Melee 1 | . . . 1 Guns 14 | . 9 5 . Classes Destroyed 5 | . 4 . 1 Builder 1 | . 1 . . Watcher 1 | . 1 . . Swarmer 9 | . 6 3 . Grunt 5 | . 3 2 . Subdweller 1 | . . . 1 Best Kill Streak 4 | . 4 3 1 Combat Bots Only 3 | . 3 3 1 Max Kills in Single Turn 2 | . 2 1 1 Gunslinging 1 | . 1 . . Exploded . | . . . . Melee 1 | . . . 1 Uniques/NPCs Destroyed . | . . . . Combat | -11 -10 -10 -10 -------- Run | Yrd Mat Min Sub Hostile Shots Fired 108 | . 55 33 20 Missed 24 | . 13 8 3 Hits 84 | . 42 25 17 Projectile 84 | . 42 25 17 Critical Strikes 2 | . 1 1 . Damage Taken 1039 | . 420 268 351 Core 258 | . 77 96 85 Absorbed by Shields . | . . . . Core Remaining (%) 100 | 100 . . . Volleys Fired 62 | . 32 23 7 Largest 2 | . 2 2 1 Hottest 100 | . 40 40 100 Shots Fired 99 | . 64 28 7 Gun 92 | . 64 28 . Cannon . | . . . . Launcher . | . . . . Special 7 | . . . 7 Kinetic 92 | . 64 28 . Thermal 7 | . . . 7 Explosive . | . . . . Electromagnetic . | . . . . Robot Hit Streak 14 | . 6 14 3 Robot Miss Streak 3 | . 3 2 2 Penetration Max . | . . . . Secondary Targets 3 | . 2 1 . Max Gunslinging Chain 1 | . 1 1 . Shots Hit Robots 66 | . 37 21 8 Core Hits 29 | . 17 11 1 Critical Kills . | . . . . Critical Parts Destroyed . | . . . . Critical Strikes . | . . . . Melee Attacks 7 | . . 1 6 Impact . | . . . . Slashing . | . . . . Piercing 7 | . . 1 6 Sneak Attacks . | . . . . Combat Hostiles . | . . . . Follow-up Attacks . | . . . . Damage Inflicted 816 | . 402 179 235 Guns 581 | . 402 179 . Cannons . | . . . . Explosions . | . . . . Melee 163 | . . . 163 Ramming . | . . . . Kinetic 581 | . 402 179 . Thermal 72 | . . . 72 Explosive . | . . . . Electromagnetic . | . . . . Impact . | . . . . Slashing . | . . . . Piercing 163 | . . . 163 Highest Corruption 1 | . 1 1 1 Average Corruption 1 | . 1 1 1 Corruption Purged . | . . . . Corruption Blocked . | . . . . Effects 7 | . 1 3 3 Message Errors 1 | . 1 . . Matter Fused 4 | . . 2 2 Heat Flow Errors 2 | . . 1 1 Overload Shots . | . . . . Overflow Damage . | . . . . Projectiles . | . . . . Explosions . | . . . . Melee . | . . . . Knockbacks . | . . . . Impact . | . . . . Kinetic . | . . . . Secondary . | . . . . Self-Inflicted Damage . | . . . . Shots . | . . . . Rammed . | . . . . Targets Rammed . | . . . . Kicked . | . . . . Crushed . | . . . . Highest Temperature 145 | . 36 145 104 Average Temperature 21 | . 12 24 68 Received Heat Transfer 348 | . 183 75 90 Siege Activations . | . . . . Martial Activations . | . . . . Shielding Activations . | . . . . Robots Disrupted . | . . . . Combat Hostiles . | . . . . Robots Corrupted . | . . . . Combat Hostiles . | . . . . Parts Fried . | . . . . Impact Corruptions . | . . . . Robots Melted . | . . . . Combat Hostiles . | . . . . Parts Melted . | . . . . Heat Transferred 150 | . . . 150 Parts Sabotaged . | . . . . Parts Stolen . | . . . . Parts Stripped . | . . . . Power Chain Reactions . | . . . . Alert | -11 -10 -10 -10 ------- Run | Yrd Mat Min Sub Maximum Alert Level . | . . . . Low Security (%) 100 | . 100 100 . Level 1 . | . . . . Level 2 . | . . . . Level 3 . | . . . . Level 4 . | . . . . Level 5 . | . . . . High Security . | . . . . Max Security . | . . . . Peak Influence 142 | . 142 77 . Initial 47 | . . 47 . Average 46 | . 75 26 . Influence Increases 352 | . 232 120 . Destroy 0b10 Robot/C 280 | . 180 100 . Destroy 0b10 Robot/NC 10 | . 10 . . Destroy Leader 62 | . 42 20 . Influence Decreases 352 | . 110 242 . Entered New Map 75 | . . 75 . Time Decay 247 | . 100 147 . Lost Part 30 | . 10 20 . Squads Dispatched 2 | . 2 . . Investigation 1 | . 1 . . Extermination . | . . . . Reinforcement 1 | . 1 . . Assault . | . . . . Garrison . | . . . . Intercept . | . . . . Searches Triggered . | . . . . Construction Impeded . | . . . . Haulers Reinforced . | . . . . Active Scanning Responses . | . . . . Cargo Convoy Interrupts . | . . . . Stealth | -11 -10 -10 -10 --------- Run | Yrd Mat Min Sub Distress Signals 1 | . 1 . . Communications Jammed . | . . . . Distress Signals . | . . . . Times Spotted 21 | . 14 5 2 Peak Tracking Total 5 | . 5 3 1 Tactical Retreats . | . . . . Traps | -11 -10 -10 -10 ------- Run | Yrd Mat Min Sub Traps Triggered 1 | . 1 . . Indirectly . | . . . . Trap Hack Attempts . | . . . . Triggered . | . . . . Disarmed . | . . . . Reprogrammed . | . . . . Reused . | . . . . Traps Extracted . | . . . . Installed . | . . . . Triggered . | . . . . Machines | -11 -10 -10 -10 ---------- Run | Yrd Mat Min Sub Machines Disabled . | . . . . Max in Single Turn . | . . . . Machines Repaired . | . . . . Machines Dismantled . | . . . . Machines Sabotaged . | . . . . Overloaded Fab Kills . | . . . . Hacking | -11 -10 -10 -10 --------- Run | Yrd Mat Min Sub Machines Accessed 1 | . 1 . . Terminals 1 | . 1 . . Fabricators . | . . . . Repair Stations . | . . . . Recycling Units . | . . . . Scanalyzers . | . . . . Garrison Access . | . . . . Total Hacks 4 | . 4 . . Successful 1 | . 1 . . Failed 3 | . 3 . . Catastrophic 1 | . 1 . . Database Lockouts . | . . . . Manual . | . . . . Terminals 4 | . 4 . . Fabricators . | . . . . Repair Stations . | . . . . Recycling Units . | . . . . Scanalyzers . | . . . . Garrison Access . | . . . . Terminal Hacks 1 | . 1 . . Zone Layout 1 | . 1 . . Fabricator Hacks . | . . . . Repair Station Hacks . | . . . . Recycling Unit Hacks . | . . . . Scanalyzer . | . . . . Garrison Access Hacks . | . . . . Unauthorized Hacks . | . . . . Terminals . | . . . . Fabricators . | . . . . Repair Stations . | . . . . Recycling Units . | . . . . Scanalyzers . | . . . . Garrison Access . | . . . . Data Cores Recovered . | . . . . Used . | . . . . Hacking Detections 1 | . 1 . . Full Trace Events 1 | . 1 . . Feedback Events . | . . . . Feedback Blocked . | . . . . Robot Schematics Acquired . | . . . . Robots Built . | . . . . Authchips . | . . . . Time . | . . . . Total Robot Build Rating . | . . . . Part Schematics Acquired . | . . . . Parts Built . | . . . . Authchips . | . . . . Time . | . . . . Total Part Build Rating . | . . . . Part Studies Acquired . | . . . . Parts Repaired . | . . . . Time . | . . . . Parts Recycled . | . . . . Recycled Matter . | . . . . Retrieved Matter . | . . . . Retrieved Components . | . . . . Parts Scanalyzed . | . . . . Part Schematics Acquired . | . . . . Parts Damaged . | . . . . Bothacking | -11 -10 -10 -10 ------------ Run | Yrd Mat Min Sub Used RIF Installer . | . . . . Robots Hacked . | . . . . Non-combat . | . . . . Combat . | . . . . Robot Hacks Applied . | . . . . Relay Couplers Released . | . . . . Fabnet Peak Effective % . | . . . . Robots Rewired . | . . . . Allies Hacked . | . . . . Hacks Repelled . | . . . . Allies | -11 -10 -10 -10 -------- Run | Yrd Mat Min Sub Total Allies 1 | . . 1 . Largest Group 1 | . . 1 1 Highest-Rated Group 31 | . . 31 31 Highest-Rated Ally 31 | . . 31 31 Total Orders . | . . . . Ally Attacks . | . . . . Total Damage . | . . . . Kills . | . . . . Allies Corrupted . | . . . . Allies Melted . | . . . . Intel | -11 -10 -10 -10 ------- Run | Yrd Mat Min Sub Active Infowar (turns) . | . . . . Robot Analysis Total . | . . . . Derelict Logs Recovered 2 | . . 1 1 Drone Launches . | . . . . Drone Recoveries . | . . . . Exploration | -11 -10 -10 -10 ------------- Run | Yrd Mat Min Sub Turns Passed 1276 | . 249 379 648 Spaces Moved 795 | 1 120 241 433 Core 9 | . . 5 4 Treads 191 | . . . 191 Legs 595 | 1 120 236 238 Wheels . | . . . . Hover . | . . . . Flight . | . . . . Fastest Speed 120 | 120 120 120 120 Average Speed 131 | 120 124 122 139 Slowest Speed 300 | 120 190 300 200 Overloaded Moves . | . . . . Propulsion Burnouts . | . . . . Robots Hopped . | . . . . Potential Cave-ins . | . . . . Cave-ins Triggered . | . . . . Exploration Rate (%) 30 | 2 29 60 31 Regions Visited 3 Branch Regions 2 Pre-discovered Areas 2 | . . 1 1 Known Exits Taken 2 | . 1 1 . Unknown Exits Taken 1 | 1 . . . Scrap Searched . | . . . . Spaces Dug . | . . . . Terrain Destroyed . | . . . . Melee . | . . . . Projectile . | . . . . AOE . | . . . . Terrain Rammed . | . . . . Walls Destroyed . | . . . . Machines Disabled . | . . . . Actions | -11 -10 -10 -10 --------- Run | Yrd Mat Min Sub Total 918 | . 164 300 454 Wait 27 | . 3 24 . Move 792 | . 119 240 433 Hop . | . . . . Pick Up 8 | . 2 5 1 Fast Attach . | . . . . Attach 10 | . 3 4 3 Detach 3 | . 2 1 . Swap 3 | . 1 1 1 Drop 6 | . 2 1 3 Fire 62 | . 32 23 7 Melee 7 | . . 1 6 Ram . | . . . . Kick . | . . . . Crush . | . . . . Escape Stasis . | . . . . Rewire . | . . . . Trap . | . . . . Miscellaneous . | . . . . Route ------- -11/Scrapyard -10/Materials -10/Mines -10/Subcaves History --------- Turn | Location | Event 1 | -11/Scrapyard | Discovered new exit (range 0) 1 | -11/Scrapyard | Entered Materials 188 | -10/Materials | Discovered new exit (range 18) 248 | -10/Materials | Identified exit to Mines 250 | -10/Materials | Entered Mines 251 | -10/Mines | Assembled infested the area 261 | -10/Mines | Core integrity fell below 50% 295 | -10/Mines | Lost 3 parts (1p1n1w) 319 | -10/Mines | Build established: Mutant 327 | -10/Mines | Learned location of Zion (-7) 356 | -10/Mines | A weapon hastily lodged in a ceiling crevice suddenly fell to the ground 561 | -10/Mines | Received a Mining Laser from a helpful Derelict 621 | -10/Mines | Discovered new exit (range 8) 628 | -10/Mines | Identified exit to Subcaves 629 | -10/Mines | Entered Subcaves 629 | -10/Subcaves | Accompanied by 1 ally 696 | -10/Subcaves | Shifting Twisted Machinery released Barrage Gun 746 | -10/Subcaves | Shifting Twisted Machinery released Flamer 947 | -10/Subcaves | Core integrity fell below 20% 985 | -10/Subcaves | Lost 4 parts (1p2n1w) 989 | -10/Subcaves | Shifting Twisted Machinery released Flamer 995 | -10/Subcaves | Shifting Twisted Machinery released Sub. Beam Cannon 1020 | -10/Subcaves | Learned location of Storage (-7) 1277 | -10/Subcaves | Destroyed by TS-MJU(R) with Subdweller Machine Gun Last Messages --------------- 00702_ JK-EO1(O) collects matter. Flamer falls loose from the Twisted Machinery. 00759_ Acquired Flamer. 00762_ Dropped Flamer. 00764_ Dropped Lgt. Assault Rifle. 00764_ Dropped EM Pulse Gun. 00765_ Subatomizers dissect the Lgt. Assault Rifle. 00825_ B8-R37(g): "You look like you can take it from here!" 00825_ B8-R37(g) slips back into the shadows. 00922_ Aluminum Leg destroyed. 00936_ System corrupted: Matter fused (-9). 00937_ Lgt. Nuclear Core destroyed. 00952_ Mining Laser destroyed. 00954_ Aluminum Leg destroyed. 00957_ K1-KAI(R) destroyed. Flamer falls loose from the Twisted Machinery. Sub. Beam Cannon falls loose from the Twisted Machinery. 01020_ Acquired derelict log, extracted data. World map updated: -7/Storage. 01226_ System corrupted: Matter fused (-7). Map ----- +----------------------------------------------------+ | ?????????????????????????????????????????????????? | | ?????????????????????????????????????????????????? | | ?????????????????????????????????????????????????? | | ?????????????????????????????????????????????????? | | ?????????????????????????????????????????????????? | | ?????????????????????????????????????????????????? | | ?????????????????????????????????????????????????? | | ?????????????????????????????????????????????????? | | ?????????????????????????????????????????????????? | | ????????????????????????????### ?????????????????? | | ???????????????????????????? ?????????????????? | | ???????????????????????????? ?????????????????? | | ???????????????????????????? #?###????????????? | | ???????????????????????????? #? ????????????? | | ???????????????????????????? ## ????????????? | | ????????????????????????????? ?????????????? | | ????????????????????????????? ?????????????? | | ????????????????????????????? ??????????????? | | ????????????????????????????? ???????????????? | | ?????????????????????###????? ????#??????????? | | ??????????????????????$<#???? ????? #?????????? | | ???????????????????????& ????# #???? ?????????? | | ????????????????????#### ?#### #???? ?????????? | | ????????????????????# <## ## ##??? ?????????? | | ???????????????????### ##R ## #??? ####?????? | | ##???####??????????# " "#@ ##???? ?????? | | #?### ####?????### #???? ??##### | | #?## #?????# #### ##????# #??#"" | | ### #?????## ##??## #??# | | ####??# ##?# #### % | | ##?# ### ###% ## | | # #?## ### "% #### | | ## #??## [ # # """#?## | | ?## #?### |""""" #?#" | | ??# ## ### ### "#""""#?## | | ??####### ## #?# # #""## ""### | | ###?????## ## ## ####"##"" "###" | | # ####??## ### ####?# """""" ##" | | # #### ##?# #????#%"""""[ " | | #??## #????# ### | | ###### ##???? ### | | ## ##????? ## | | #?????? ?# | | ##?????? ?## | | #??????? ???# | | ## ##??????????## | | # ##### #??????????## ## | | #### ## ##???## #?????????## ##### | | ???## #####?????#########?????????# #??# | | ????### #??????????????????????????# ## #??# | +----------------------------------------------------+ Best States ------------- Heat Dissipation 25 Energy Generation 14 Energy Capacity 250 Matter Stores 300 Matter Capacity 300 Sight Range 16 Terrain Scan Density 10 Evasion (%) 55 Recoil Reduction 2 Item Schematics ----------------- None Robot Schematics ------------------ None Fabricated ------------ Nothing Repaired ---------- Nothing Studied --------- None Alien Tech Used ----------------- None Achievements -------------- None Challenges ------------ None Game ------ Seed ProjectileSubdwellerStorm Manual? 0 Play Time 00:10:30 Cumulative 15.6 hours Start 2026.08.12 @ 14:36:00 End 2026.08.12 @ 14:44:18 Sessions 1 Manual Loads 0 Difficulty Rogue Special Mode None Game No. 44 Rogue 37 Adventurer 7 Explorer 0 Win Type - Total 0 Types 0/0/0/0/0/0/0/0/0/0 Lore% 10 Gallery% 20 Achievement% 14 Wizard Run 0 Options --------- Layout 0 ASCII 0 Keyboard 0 Movement Mouse Keybinds 0 Fullscreen 1 Font 18/SmallcapsGlow Map View 38x25 Zoom Use 100% Tactical HUD 1 Map Filters NONE Filters NONE Steam 1 RUN: 655d7c35-de58-47f1-afa8-f809ef1c2307